bitfinex/quotes_SOLUSD_20260220
["timestamp","ask_amount","ask_price","bid_price","bid_amount"]
[1771622907790,3.69383402,84.57,84.507,11.83333925]
[1771622907791,11.82648185,84.556,84.521,1.53896051]
[1771622908371,11.82648185,84.556,84.522,11.8312392]
[1771622908602,13.29777329,84.556,84.523,1.53896051]
[1771622909492,1.47129144,84.555,84.525,1.53896051]
[1771622912890,1.47129144,84.553,84.527,1.53896051]
[1771622914096,1.47129144,84.549,84.512,1.53896051]
[1771622915109,1.47129144,84.539,84.513,1.53896051]
[1771622916797,1.47129144,84.539,84.512,11.83263915]
[1771622916997,11.82899997,84.538,84.512,11.83263915]
[1771622917180,1.47129144,84.537,84.512,11.83263915]
[1771622917803,1.47129144,84.537,84.512,13.3428777]
[1771622919183,4.30388839,84.53,84.506,1.51023855]
[1771622919383,1.59388146,84.529,84.491,1.51023855]
[1771622920386,1.59388146,84.537,84.501,1.51023855]
[1771622921380,1.59388146,84.535,84.503,1.51023855]
[1771622923091,1.59388146,84.535,84.503,1.51023855]
[1771622923799,1.59388146,84.535,84.504,11.83375934]
[1771622924103,1.59388146,84.535,84.505,1.51023855]
[1771622924985,1.59388146,84.535,84.507,1.51023855]
[1771622926485,1.59388146,84.533,84.507,1.51023855]
[1771622927801,1.59388146,84.533,84.509,1.51023855]
[1771622931916,1.59388146,84.531,84.51,11.83291918]
[1771622933515,1.59388146,84.531,84.51,1.51023855]
[1771622938323,1.59388146,84.531,84.511,1.51023855]
[1771622938523,1.59388146,84.529,84.5,4.30388839]
[1771622938706,1.59388146,84.509,84.481,1.51023855]
[1771622939619,1.59388146,84.509,84.471,11.8383824]
[1771622939802,1.59388146,84.499,84.472,1.51023855]
[1771622940504,1.59388146,84.497,84.472,1.51023855]
[1771622942824,1.59388146,84.495,84.472,1.51023855]
[1771622943927,1.59388146,84.499,84.474,1.51023855]
[1771622945927,1.59388146,84.497,84.474,1.51023855]
[1771622946905,1.59388146,84.497,84.476,1.56914995]
[1771622949026,11.8336195,84.505,84.481,1.53697013]
[1771622949324,11.83249914,84.513,84.481,1.53697013]
[1771622949636,1.5370421,84.512,84.481,1.53697013]
[1771622949803,1.5370421,84.512,84.491,1.53697013]
[1771622952017,11.83277916,84.511,84.491,1.53697013]
[1771622952327,13.36982126,84.511,84.491,1.53697013]
[1771622953707,104.4,84.53,84.493,1.53697013]
[1771622953708,11.83208808,84.516,84.493,1.53697013]
[1771622954224,1.5370421,84.52,84.495,1.53697013]
[1771622956934,1.5370421,84.518,84.495,1.53697013]
[1771622959523,1.5370421,84.516,84.495,1.53697013]
[1771622962024,1.5370421,84.514,84.495,1.53697013]
[1771622964238,1.5370421,84.512,84.495,1.53697013]
[1771622971243,1.5370421,84.511,84.489,1.53697013]
[1771622971625,1.5370421,84.511,84.491,1.53697013]
[1771622973027,1.5370421,84.511,84.493,1.53697013]
[1771622978853,1.5370421,84.511,84.495,1.40646736]
[1771622982236,1.43627024,84.516,84.495,1.40646736]
[1771622982655,1.43627024,84.516,84.497,1.40646736]
[1771622982841,41.40590802,84.529,84.496,11.83487975]
[1771622982842,11.83025943,84.529,84.501,1.40646736]
[1771622983453,11.83025943,84.529,84.497,1.40646736]
[1771622983454,1.43627024,84.528,84.497,1.40646736]
[1771622984137,1.43627024,84.528,84.501,1.40646736]
[1771622984325,1.43627024,84.526,84.503,1.40646736]
[1771622986351,1.43627024,84.526,84.502,11.83403943]
[1771622986352,4.30746844,84.54,84.512,11.83263915]
[1771622986553,4.30746844,84.54,84.513,1.40646736]
[1771622987655,11.82886005,84.539,84.513,1.40646736]
[1771622988454,0.93463627,84.536,84.513,1.40646736]
[1771622990957,4.30746844,84.54,84.513,1.40646736]
[1771622990958,0.92906659,84.534,84.513,1.40646736]
[1771622993834,0.92368644,84.543,84.515,1.40646736]
[1771622994638,4.30746844,84.54,84.515,1.40646736]
[1771622995864,11.82886005,84.539,84.515,1.40646736]
[1771622996251,0.92021592,84.538,84.515,1.40646736]
[1771622996765,0.92021592,84.538,84.51,1.40646736]
[1771622998063,0.9168173,84.536,84.51,1.40646736]
[1771622999044,0.9168173,84.536,84.511,11.83277916]
[1771622999338,0.9168173,84.536,84.512,1.40646736]
[1771623000173,0.91351114,84.534,84.496,11.83483598]
[1771623000367,0.91351114,84.519,84.492,1.40646736]
[1771623001051,0.91188367,84.509,84.475,1.40646736]
[1771623001241,0.91188367,84.499,84.471,1.40646736]
[1771623002261,0.91188367,84.499,84.473,1.40646736]
[1771623002459,0.91027879,84.507,84.473,1.40646736]
[1771623002775,4.30746844,84.51,84.481,1.40646736]
[1771623002950,0.90869103,84.514,84.481,1.40646736]
[1771623003278,0.90869103,84.514,84.472,11.83824225]
[1771623003279,0.90869103,84.519,84.491,1.40646736]
[1771623004353,0.90711818,84.509,84.477,1.40646736]
[1771623004557,0.90711818,84.499,84.477,1.40646736]
[1771623006364,0.90404696,84.497,84.477,1.40646736]
[1771623007068,0.90103214,84.505,84.477,1.40646736]
[1771623009259,11.83375934,84.504,84.477,1.40646736]
[1771623009953,0.89520756,84.505,84.478,11.83740145]
[1771623010159,12.72894119,84.505,84.479,1.35234464]
[1771623010472,0.89520756,84.504,84.479,1.35234464]
[1771623011976,0.8923939,84.502,84.479,1.35234464]
[1771623012869,0.8923939,84.502,84.48,1.35234464]
[1771623016378,5.19344521,84.51,84.482,1.35234464]
[1771623016979,0.88249731,84.513,84.482,1.35234464]
[1771623017170,4.3088472,84.51,84.482,1.35234464]
[1771623017367,0.88249731,84.509,84.482,1.35234464]
[1771623021682,0.88249731,84.509,84.484,1.35234464]
[1771623027784,0.88249731,84.509,84.486,1.35234464]
[1771623031077,0.88249731,84.509,84.488,1.35234464]
[1771623033186,0.88249731,84.509,84.484,1.35234464]
[1771623035107,0.88249731,84.509,84.485,11.83642066]
[1771623035399,0.88249731,84.509,84.486,1.35234464]
[1771623037590,0.84363987,84.508,84.486,1.35234464]
[1771623044198,0.83264503,84.499,84.471,1.36469429]
[1771623044403,0.83264503,84.489,84.471,1.36469429]
[1771623045302,0.83264503,84.489,84.473,1.36469429]
[1771623046603,0.82819867,84.499,84.473,1.36469429]
[1771623047604,0.82674875,84.503,84.475,1.36469429]
[1771623049204,11.83376933,84.504,84.475,1.36469429]
[1771623050903,11.83376933,84.504,84.477,1.36469429]
[1771623051282,104.4,84.526,84.476,11.8376817]
[1771623051283,0.82250077,84.518,84.481,1.36469429]
[1771623052010,11.83152364,84.52,84.481,1.36469429]
[1771623052593,11.83152364,84.52,84.483,1.36469429]
[1771623053401,11.83152364,84.52,84.491,1.36469429]
[1771623053788,0.81837868,84.528,84.493,1.36469429]
[1771623054185,0.81837868,84.519,84.493,1.36469429]
[1771623055607,0.81571819,84.509,84.488,1.36469429]
[1771623065512,0.80449656,84.507,84.484,1.36469429]
[1771623066518,0.80449656,84.507,84.48,1.36469429]
[1771623066698,4.3088472,84.49,84.471,1.36469429]
[1771623066903,0.80099761,84.487,84.47,0.2]
[1771623068297,4.3088472,84.48,84.47,0.2]
[1771623068699,4.3088472,84.48,84.442,1.43363075]
[1771623068700,0.79763965,84.478,84.442,1.43363075]
[1771623068895,0.79763965,84.469,84.442,1.43363075]
[1771623069731,0.79763965,84.459,84.44,0.2]
[1771623069941,4.3088472,84.45,84.43,1.63363075]
[1771623070121,0.79654513,84.449,84.43,1.63363075]
[1771623070699,0.7954781,84.448,84.43,0.2]
[1771623070921,4.3088472,84.44,84.425,1.43363075]
[1771623072022,4.31541594,84.44,84.425,1.43363075]
[1771623072207,0.7954781,84.443,84.425,1.43363075]
[1771623072403,11.84155603,84.449,84.425,1.43363075]
[1771623072607,11.8400644,84.459,84.427,1.43363075]
[1771623072819,11.8400644,84.459,84.429,1.43363075]
[1771623073007,0.79335147,84.458,84.429,1.43363075]
[1771623073510,0.79335147,84.469,84.431,1.43363075]
[1771623074023,0.79214711,84.459,84.431,1.43363075]
[1771623078116,0.79214711,84.459,84.433,1.43363075]
[1771623082409,0.79214711,84.459,84.435,1.43363075]
[1771623083811,0.780906,84.465,84.435,1.43363075]
[1771623084131,11.83899634,84.467,84.435,1.43363075]
[1771623085133,11.83899634,84.467,84.437,1.43363075]
[1771623086012,0.77880261,84.466,84.437,1.43363075]
[1771623086724,11.83856365,84.47,84.439,1.43363075]
[1771623086926,16.15397959,84.47,84.439,1.43363075]
[1771623087133,11.83798222,84.474,84.441,1.43363075]
[1771623087329,104.4,84.479,84.441,1.43363075]
[1771623087629,4.31541594,84.48,84.441,1.43363075]
[1771623088229,5.09218918,84.48,84.441,1.43363075]
[1771623088538,0.77677324,84.479,84.443,1.43363075]
[1771623090340,0.77476085,84.478,84.443,1.43363075]
[1771623091333,0.77378616,84.469,84.444,11.84216759]
[1771623091633,0.77378616,84.469,84.445,1.43363075]
[1771623096716,4.31541594,84.46,84.445,1.43363075]
[1771623098942,0.76813253,84.463,84.445,1.43363075]
[1771623102042,11.83880286,84.468,84.445,1.43363075]
[1771623104143,12.59994076,84.468,84.445,1.43363075]
[1771623104740,0.7603075,84.467,84.445,1.43363075]
[1771623109233,11.83908318,84.466,84.445,1.43363075]
[1771623109432,0.75708383,84.465,84.445,1.43363075]
[1771623109646,11.83908318,84.466,84.42,0.2]
[1771623109647,4.31541594,84.46,84.434,1.37658759]
[1771623109841,0.75629922,84.459,84.434,1.37658759]
[1771623112140,0.75629922,84.459,84.436,1.37658759]
[1771623112341,0.7547639,84.465,84.436,1.37658759]
[1771623113840,11.83908318,84.466,84.437,11.84314933]
[1771623114032,11.83861333,84.47,84.438,1.37658759]
[1771623114233,11.83861333,84.47,84.441,1.37658759]
[1771623116831,0.75106846,84.469,84.441,1.37658759]
[1771623117147,41.43041465,84.479,84.441,1.37658759]
[1771623117148,0.75106846,84.459,84.441,1.37658759]
[1771623119354,0.74966652,84.449,84.42,1.57658759]
[1771623119654,0.74897751,84.444,84.42,1.57658759]
[1771623119854,0.74897751,84.449,84.42,1.57658759]
[1771623120450,11.84020459,84.458,84.42,1.57658759]
[1771623120451,4.31541594,84.44,84.42,1.57658759]
[1771623120656,5.06439345,84.44,84.42,1.57658759]
[1771623120862,4.31541594,84.44,84.42,1.57658759]
[1771623121240,4.31541594,84.45,84.422,1.37658759]
[1771623121440,4.31541594,84.45,84.424,1.37658759]
[1771623121666,0.74762416,84.462,84.424,1.37658759]
[1771623121846,4.31541594,84.46,84.424,1.37658759]
[1771623122356,4.31541594,84.47,84.431,1.37658759]
[1771623122563,0.74762416,84.478,84.441,1.37658759]
[1771623122762,11.83754157,84.477,84.441,1.37658759]
[1771623123151,4.31541594,84.48,84.441,1.37658759]
[1771623123360,4.31541594,84.48,84.423,100.68346302]
[1771623123361,11.83614047,84.487,84.453,1.37658759]
[1771623124951,11.83614047,84.487,84.455,1.37658759]
[1771623125763,0.74497801,84.479,84.445,1.37658759]
[1771623127064,11.83740145,84.478,84.445,1.37658759]
[1771623127271,0.74370442,84.477,84.445,1.37658759]
[1771623128273,11.8376817,84.476,84.445,1.37658759]
[1771623128477,0.74247391,84.475,84.445,1.37658759]
[1771623129874,0.74126396,84.473,84.445,1.37658759]
[1771623131751,0.74008171,84.469,84.445,1.37658759]
[1771623132148,0.74008171,84.449,84.416,13.24527637]
[1771623132361,4.31541594,84.44,84.422,1.399187]
[1771623132567,0.73950228,84.449,84.422,1.399187]
[1771623134174,0.73730855,84.447,84.422,1.399187]
[1771623135682,0.73298652,84.445,84.422,1.399187]
[1771623139365,0.7266663,84.474,84.422,1.399187]
[1771623139567,0.7266663,84.474,84.424,1.399187]
[1771623139568,0.7266663,84.459,84.424,1.399187]
[1771623143372,0.71855548,84.429,84.42,0.2]
[1771623143878,0.71659682,84.435,84.42,0.2]
[1771623144477,0.51659682,84.429,84.41,0.2]
[1771623144678,4.3152336,84.42,84.41,0.2]
[1771623144879,0.51481648,84.426,84.41,0.2]
[1771623145266,0.51481648,84.439,84.411,1.399187]
[1771623145463,0.51481648,84.439,84.412,1.399187]
[1771623146062,4.3152336,84.43,84.412,1.399187]
[1771623148067,1.33871392,84.475,84.421,1.399187]
[1771623148266,1.33871392,84.469,84.441,1.399187]
[1771623149284,1.33871392,84.469,84.443,1.399187]
[1771623149469,1.33871392,84.476,84.443,1.399187]
[1771623151498,1.33871392,84.489,84.451,1.399187]
[1771623151805,104.4,84.551,84.444,41.44758656]
[1771623151806,1.33871392,84.525,84.481,1.399187]
[1771623152096,4.3152336,84.53,84.491,1.399187]
[1771623152265,11.83025943,84.529,84.491,1.399187]
[1771623152671,1.33871392,84.528,84.491,1.399187]
[1771623152969,0.1,84.56,84.521,1.399187]
[1771623153175,0.1,84.56,84.54,4.3152336]
[1771623153399,0.1,84.56,84.541,1.399187]
[1771623154176,0.1,84.56,84.51,4.3152336]
[1771623154177,1.33871392,84.549,84.51,4.3152336]
[1771623154371,1.33871392,84.539,84.51,4.3152336]
[1771623154580,1.33871392,84.539,84.506,1.399187]
[1771623155575,1.33871392,84.537,84.506,1.399187]
[1771623157890,13.17051278,84.536,84.506,1.399187]
[1771623158702,1.34123295,84.539,84.507,1.25522649]
[1771623159198,1.34123295,84.539,84.5,11.5329819]
[1771623159379,1.34123295,84.519,84.482,1.25522649]
[1771623159999,1.34123295,84.517,84.483,1.25522649]
[1771623161275,11.83207913,84.516,84.483,1.25522649]
[1771623161681,13.17331208,84.516,84.483,1.25522649]
[1771623161875,1.34123295,84.515,84.483,1.25522649]
[1771623163993,11.83235913,84.514,84.483,1.25522649]
[1771623164300,13.17359208,84.514,84.483,1.25522649]
[1771623165799,1.34123295,84.527,84.491,1.25522649]
[1771623166297,13.17191226,84.526,84.493,1.25522649]
[1771623166782,1.34123295,84.519,84.486,1.25522649]
[1771623170000,1.34123295,84.519,84.468,29.59677107]
[1771623170001,11.82927983,84.536,84.5,11.5329819]
[1771623170201,1.34123295,84.535,84.501,1.25522649]
[1771623170507,12.87421485,84.53,84.501,1.25522649]
[1771623170808,11.5329819,84.53,84.501,1.25522649]
[1771623171023,1.34123295,84.529,84.501,1.25522649]
[1771623171487,1.34123295,84.535,84.501,1.25522649]
[1771623171692,12.87421485,84.52,84.488,1.25522649]
[1771623171891,1.34123295,84.519,84.488,1.25522649]
[1771623172093,1.34123295,84.519,84.49,1.25522649]
[1771623173610,1.34123295,84.519,84.492,1.25522649]
[1771623174713,1.34123295,84.509,84.474,1.25522649]
[1771623176801,1.34123295,84.507,84.474,1.25522649]
[1771623177014,11.5329819,84.5,84.474,1.25522649]
[1771623177315,12.87421485,84.5,84.474,1.25522649]
[1771623177699,1.34123295,84.5,84.474,1.25522649]
[1771623177911,11.83445957,84.499,84.474,1.25522649]
[1771623178119,1.34123295,84.479,84.439,1.25522649]
[1771623178311,4.30903298,84.46,84.439,1.25522649]
[1771623178610,92.45228084,84.499,84.439,1.25522649]
[1771623178611,4.30903298,84.47,84.439,1.25522649]
[1771623178818,1.34123295,84.479,84.441,1.25522649]
[1771623179219,4.30903298,84.47,84.441,1.25522649]
[1771623180010,11.55068459,84.47,84.443,1.25522649]
[1771623180319,23.38930776,84.47,84.443,1.25522649]
[1771623181719,1.34123295,84.469,84.436,1.25522649]
[1771623182031,12.89191754,84.45,84.422,1.25522649]
[1771623182821,1.34123295,84.448,84.422,1.25522649]
[1771623183904,11.55068459,84.45,84.422,1.25522649]
[1771623184814,1.34123295,84.455,84.424,1.25522649]
[1771623185017,29.59624437,84.471,84.424,1.25522649]
[1771623185018,1.34123295,84.464,84.424,1.25522649]
[1771623185721,1.34123295,84.464,84.431,1.25522649]
[1771623186298,11.83964924,84.462,84.433,1.25522649]
[1771623186719,13.18088219,84.462,84.433,1.25522649]
[1771623187916,1.30981786,84.459,84.433,1.25522649]
[1771623188423,1.30981786,84.459,84.426,1.27923392]
[1771623190938,1.30981786,84.457,84.426,1.27923392]
[1771623193521,11.84048498,84.456,84.428,1.27923392]
[1771623193726,11.83880286,84.468,84.428,1.27923392]
[1771623194120,1.30981786,84.467,84.428,1.27923392]
[1771623194625,11.55303433,84.46,84.428,1.27923392]
[1771623196615,11.55303433,84.46,84.43,1.27923392]
[1771623197537,11.83975184,84.462,84.43,1.27923392]
[1771623199235,1.30981786,84.462,84.432,1.27923392]
[1771623202051,13.14947998,84.462,84.434,1.27923392]
[1771623202353,1.30981786,84.461,84.434,1.27923392]
[1771623203244,29.59665676,84.469,84.436,1.27923392]
[1771623203245,1.30981786,84.459,84.436,1.27923392]
[1771623204351,1.30981786,84.459,84.433,11.84360001]
[1771623204547,1.30981786,84.459,84.43,1.27923392]
[1771623204752,1.30981786,84.439,84.42,1.47923392]
[1771623205045,1.30981786,84.439,84.42,13.32465867]
[1771623205538,16.15470132,84.45,84.421,1.27923392]
[1771623205740,1.30981786,84.449,84.421,1.27923392]
[1771623205938,1.30981786,84.459,84.421,1.27923392]
[1771623207533,1.30981786,84.459,84.42,45.97257026]
[1771623207534,1.30981786,84.459,84.423,1.27923392]
[1771623209035,11.83974985,84.462,84.423,1.27923392]
[1771623209242,1.30981786,84.461,84.423,1.27923392]
[1771623209433,1.30981786,84.459,84.423,1.27923392]
[1771623210141,4.31330993,84.46,84.425,1.27923392]
[1771623210142,1.30981786,84.457,84.425,1.27923392]
[1771623211129,1.30981786,84.457,84.426,11.84469239]
[1771623211453,1.30981786,84.457,84.427,1.27923392]
[1771623213439,1.30981786,84.457,84.428,11.8444118]
[1771623213753,1.30981786,84.457,84.429,1.27923392]
[1771623214756,11.83967153,84.462,84.429,1.27923392]
[1771623214951,13.14948939,84.462,84.429,1.27923392]
[1771623215145,1.30981786,84.461,84.429,1.27923392]
[1771623215449,4.31330993,84.46,84.429,1.27923392]
[1771623215653,1.30981786,84.459,84.431,1.27923392]
[1771623226454,1.30981786,84.459,84.432,11.84385067]
[1771623226666,1.30981786,84.459,84.433,1.2865689]
[1771623229062,4.31330993,84.46,84.435,1.2865689]
[1771623229367,11.83967153,84.462,84.435,1.2865689]
[1771623229564,13.15565065,84.462,84.435,1.2865689]
[1771623229952,1.31597912,84.461,84.435,1.2865689]
[1771623232173,1.31597912,84.459,84.437,1.2865689]
[1771623236955,1.31597912,84.479,84.451,1.2865689]
[1771623237672,11.83428709,84.501,84.471,1.2865689]
[1771623238053,11.83428709,84.501,84.471,1.0815689]
[1771623239370,11.83428709,84.501,84.472,11.83824225]
[1771623240173,11.83428709,84.501,84.473,1.2865689]
[1771623240380,4.31330993,84.51,84.473,1.2865689]
[1771623240573,4.31330993,84.51,84.472,11.83824225]
[1771623240574,6.18480272,84.513,84.481,1.2865689]
[1771623240885,6.18480272,84.513,84.472,41.43384789]
[1771623240886,1.31597912,84.524,84.491,1.2865689]
[1771623241170,1.31597912,84.522,84.491,1.2865689]
[1771623241373,4.31330993,84.51,84.475,1.2865689]
[1771623241574,1.31597912,84.509,84.481,1.2865689]
[1771623243181,11.83102313,84.524,84.491,1.2865689]
[1771623243382,1.31597912,84.524,84.492,11.83544004]
[1771623243582,1.31597912,84.524,84.493,1.2865689]
[1771623245375,1.31597912,84.524,84.464,3.69383402]
[1771623245376,4.31330993,84.51,84.47,1.2865689]
[1771623245569,1.31597912,84.499,84.461,1.2865689]
[1771623245767,1.31597912,84.499,84.471,1.2865689]
[1771623246176,1.31597912,84.509,84.471,1.2865689]
[1771623247195,1.31597912,84.509,84.481,1.32439538]
[1771623247573,1.31597912,84.509,84.483,1.31299082]
[1771623247965,1.28617302,84.515,84.483,1.31299082]
[1771623248286,1.28617302,84.515,84.49,4.31330993]
[1771623248486,1.28617302,84.515,84.491,1.31299082]
[1771623249073,1.28617302,84.526,84.491,1.31299082]
[1771623249467,1.28617302,84.526,84.493,1.31299082]
[1771623249468,11.83081928,84.525,84.493,1.31299082]
[1771623249674,1.28617302,84.524,84.493,1.31299082]
[1771623251581,1.28617302,84.509,84.482,1.31299082]
[1771623252577,1.28617302,84.509,84.473,1.31299082]
[1771623252778,1.28617302,84.499,84.473,1.31299082]
[1771623253487,11.83451362,84.499,84.473,1.31299082]
[1771623253680,1.28617302,84.498,84.473,1.31299082]
[1771623255084,1.28617302,84.498,84.475,1.31299082]
[1771623256494,11.83451362,84.499,84.475,1.31299082]
[1771623257689,1.28617302,84.498,84.475,1.31299082]
[1771623258189,1.28617302,84.496,84.475,1.31299082]
[1771623259898,1.28617302,84.489,84.45,1.31299082]
[1771623260086,1.28617302,84.489,84.451,1.31299082]
[1771623262995,1.28617302,84.487,84.453,1.31299082]
[1771623263492,1.28617302,84.479,84.453,1.31299082]
[1771623267914,1.28617302,84.478,84.453,1.31299082]
[1771623271791,1.28617302,84.476,84.453,1.31299082]
[1771623271989,1.28617302,84.476,84.448,11.84159602]
[1771623271990,1.28617302,84.476,84.449,1.31299082]
[1771623273006,11.83754157,84.477,84.444,1.31299082]
[1771623273007,1.28617302,84.469,84.444,1.31299082]
[1771623273308,1.28617302,84.459,84.439,1.31299082]
[1771623274901,1.28617302,84.465,84.441,1.31299082]
[1771623280703,1.28617302,84.465,84.442,11.84244807]
[1771623280906,1.28617302,84.465,84.443,1.29368885]
[1771623282010,11.83856632,84.47,84.443,1.29368885]
[1771623282311,4.30916284,84.48,84.444,1.29368885]
[1771623282997,11.83726133,84.479,84.445,11.84202735]
[1771623283195,11.83726133,84.479,84.446,1.29368885]
[1771623284298,0.62967054,84.478,84.446,1.29368885]
[1771623289413,0.61610049,84.459,84.429,1.29368885]
[1771623290912,4.30916284,84.46,84.429,1.29368885]
[1771623291111,4.30916284,84.47,84.431,1.29368885]
[1771623291322,4.30916284,84.48,84.453,1.29368885]
[1771623291611,4.92006202,84.47,84.453,1.29368885]
[1771623291996,0.61089918,84.47,84.453,1.29368885]
[1771623292699,0.60580233,84.459,84.431,1.29368885]
[1771623293616,0.60580233,84.459,84.434,1.29368885]
[1771623294120,0.60329432,84.469,84.434,1.29368885]
[1771623296323,0.59836996,84.467,84.436,1.29368885]
[1771623296624,4.30916284,84.46,84.436,1.29368885]
[1771623296924,0.59594531,84.465,84.436,1.29368885]
[1771623298730,4.30916284,84.45,84.421,1.29368885]
[1771623298910,0.59119555,84.449,84.421,1.29368885]
[1771623299312,0.59119555,84.449,84.422,1.29368885]
[1771623299916,0.58885402,84.455,84.422,1.29368885]
[1771623300518,4.30916284,84.46,84.422,1.29368885]
[1771623300718,4.30916284,84.48,84.433,1.29368885]
[1771623300719,11.83780743,84.476,84.433,1.29368885]
[1771623301233,0.58653753,84.475,84.433,1.29368885]
[1771623302232,0.58653753,84.475,84.441,1.29368885]
[1771623303935,11.83796197,84.474,84.442,11.84244807]
[1771623304232,12.41773615,84.474,84.443,1.29368885]
[1771623306422,0.57538907,84.473,84.444,11.84216759]
[1771623306717,0.57538907,84.473,84.445,1.29368885]
[1771623307931,11.83726133,84.479,84.445,1.29368885]
[1771623307932,0.56689068,84.469,84.445,1.29368885]
[1771623308738,16.14770292,84.47,84.445,1.29368885]
[1771623308939,16.14770292,84.47,84.447,1.19068083]
[1771623313837,16.70054286,84.47,84.447,1.19068083]
[1771623314437,11.83880286,84.468,84.447,1.19068083]
[1771623314841,0.54888176,84.467,84.447,1.19068083]
[1771623315847,0.54496971,84.471,84.447,1.19068083]
[1771623316141,0.54496971,84.469,84.447,1.19068083]
[1771623316323,0.54496971,84.469,84.449,1.19068083]
[1771623318830,0.53349871,84.467,84.449,1.19068083]
[1771623320940,0.53349871,84.467,84.443,1.19068083]
[1771623322349,0.52243747,84.466,84.445,1.19068083]
[1771623330947,0.49140021,84.468,84.445,1.19068083]
[1771623333766,0.49140021,84.468,84.447,1.19068083]
[1771623334557,0.4817747,84.478,84.447,1.19068083]
[1771623334846,11.83726133,84.479,84.447,1.19068083]
[1771623335342,0.4786399,84.478,84.447,1.19068083]
[1771623335658,0.4786399,84.478,84.448,11.84160666]
[1771623335871,11.83726133,84.479,84.451,1.19068083]
[1771623336074,0.47553004,84.489,84.451,1.19068083]
[1771623337160,11.83600037,84.488,84.451,1.19068083]
[1771623337362,0.46941842,84.479,84.451,1.19068083]
[1771623338066,4.31259708,84.47,84.451,1.19068083]
[1771623338262,0.46643084,84.469,84.451,1.19068083]
[1771623338564,0.46643084,84.469,84.451,13.03180267]
[1771623340659,1.12355832,84.467,84.443,11.84229502]
[1771623340962,1.12355832,84.459,84.421,11.84539391]
[1771623342367,1.12355832,84.458,84.421,11.84539391]
[1771623342860,1.12355832,84.458,84.422,1.17746416]
[1771623344870,1.12355832,84.456,84.424,1.17746416]
[1771623345055,11.84034479,84.457,84.421,29.61348479]
[1771623345056,1.12355832,84.449,84.421,1.17746416]
[1771623345264,4.31259708,84.44,84.421,1.17746416]
[1771623345571,1.12355832,84.439,84.421,1.17746416]
[1771623346172,1.12355832,84.439,84.421,13.02285807]
[1771623347472,1.12355832,84.439,84.422,1.17746416]
[1771623348677,11.84158081,84.449,84.424,1.17746416]
[1771623350490,0.50976591,84.446,84.424,1.17746416]
[1771623353856,0.50617382,84.439,84.42,0.2]
[1771623355958,0.50617382,84.439,84.421,1.17746416]
[1771623357862,0.50274639,84.445,84.421,1.17746416]
[1771623360685,11.84146644,84.449,84.423,1.17746416]
[1771623361786,0.49946791,84.448,84.423,1.17746416]
[1771623362985,0.49946791,84.448,84.424,11.84497299]
[1771623363186,0.49946791,84.448,84.425,1.17746416]
[1771623367190,4.31259708,84.45,84.42,0.2]
[1771623367191,4.31259708,84.45,84.427,1.15901733]
[1771623369280,0.49337556,84.457,84.429,1.1899106]
[1771623369486,4.31259708,84.46,84.431,1.1899106]
[1771623369889,11.83855154,84.47,84.441,1.1899106]
[1771623371893,11.83797452,84.474,84.442,11.84244807]
[1771623372090,11.83797452,84.474,84.443,1.1899106]
[1771623373888,12.32212819,84.498,84.461,1.1899106]
[1771623374094,0.48752856,84.497,84.461,1.1899106]
[1771623376375,0.4829859,84.495,84.463,1.1899106]
[1771623376975,0.48075334,84.489,84.463,1.1899106]
[1771623377494,0.48075334,84.489,84.458,1.1899106]
[1771623378695,0.47854869,84.487,84.46,1.1899106]
[1771623380280,0.47421357,84.485,84.462,1.1899106]
[1771623381375,29.58719939,84.496,84.445,1.1899106]
[1771623381376,0.47209287,84.479,84.445,1.1899106]
[1771623383402,0.46791768,84.478,84.447,1.1899106]
[1771623384804,0.46791768,84.478,84.45,4.31082705]
[1771623385004,0.46791768,84.478,84.451,1.1899106]
[1771623386897,4.31082705,84.49,84.452,11.8410458]
[1771623386898,0.45982631,84.483,84.452,11.8410458]
[1771623387100,0.45982631,84.483,84.453,1.1899106]
[1771623389802,0.45399453,84.488,84.455,1.1899106]
[1771623392620,0.45021419,84.486,84.457,1.1899106]
[1771623395545,0.45021419,84.486,84.459,1.1899106]
[1771623399021,0.45021419,84.486,84.461,1.09966049]
[1771623401324,0.45021419,84.486,84.462,11.83964386]
[1771623401524,0.45021419,84.486,84.463,1.09966049]
[1771623406225,0.45021419,84.486,84.465,1.09966049]
[1771623406613,4.31082705,84.49,84.465,1.09966049]
[1771623406614,0.42453252,84.484,84.465,1.09966049]
[1771623418327,0.42453252,84.484,84.467,1.09966049]
[1771623419837,0.40427273,84.49,84.467,1.09966049]
[1771623420223,0.40427273,84.49,84.469,1.09966049]
[1771623420420,11.83392278,84.503,84.471,1.09966049]
[1771623420930,0.40293869,84.538,84.491,1.09966049]
[1771623421127,0.40293869,84.549,84.511,1.09966049]
[1771623421326,4.31082705,84.55,84.511,1.09966049]
[1771623421327,11.82899997,84.538,84.511,1.09966049]
[1771623421525,0.40293869,84.529,84.491,1.09966049]
[1771623421819,11.83039939,84.528,84.492,11.83544004]
[1771623422025,0.40162263,84.527,84.493,1.09966049]
[1771623422230,4.31082705,84.52,84.493,1.09966049]
[1771623422436,0.1,84.56,84.511,0.14216157]
[1771623422631,6.17997529,84.555,84.521,0.14216157]